Cogmind - Beta 12 @@@ ROGUE MODE // 2023.05.14 @ 17:37:21 Player: Mr Goldstein Result: Destroyed self via exploding Fusion Modulator Performance ------------- Evolutions (1) 500 Regions Visited (3) 600 Robots Destroyed (0) 0 Value Destroyed (10) 10 Prototype IDs (0) 0 Alien Tech Used (0) 0 Bonus (200) 200 TOTAL SCORE: 1310 Bonus ------- Pacifist 200 Cogmind --------- Core Integrity 0/400 Matter 270/300 Energy 100/100 System Corruption 2% Temperature Cool (12) Movement Core (50) Location -9/Materials Parts ------- > --- POWER (1) -------- (None) > --- PROPULSION (2) --- (None) > --- UTILITY (4) ------ (None) > --- WEAPON (2) ------- Grenade Launcher > --- INVENTORY (5) ---- (None) Peak State ------------ > --- POWER ------------ (None) > --- PROPULSION ------- (None) > --- UTILITY ---------- (None) > --- WEAPON ----------- Grenade Launcher > --- INVENTORY -------- (None) [Rating: 1] Favorites ----------- Power None Propulsion None Utility None Weapon Grenade Launcher Launcher Grenade Launcher Build | -11 -10 -10 -9 ------- Run | Jun Mat Min Mat Slots Evolved 2 | . . . 2 Power . | . . . . Propulsion . | . . . . Utility 2 | . . . 2 Weapon . | . . . . Parts Attached 1 | . . . 1 Power . | . . . . Engine . | . . . . Core . | . . . . Reactor . | . . . . Propulsion . | . . . . Treads . | . . . . Leg . | . . . . Wheel . | . . . . Hover . | . . . . Flight . | . . . . Utility . | . . . . Device . | . . . . Storage . | . . . . Processor . | . . . . Hackware . | . . . . Protection . | . . . . Artifact . | . . . . Weapon 1 | . . . 1 Energy Gun . | . . . . Energy Cannon . | . . . . Ballistic Gun . | . . . . Ballistic Cannon . | . . . . Launcher 1 | . . . 1 Special Weapon . | . . . . Impact Weapon . | . . . . Slashing Weapon . | . . . . Piercing Weapon . | . . . . Special Melee Weapon . | . . . . Unidentified Prototypes . | . . . . Parts Lost . | . . . . Power . | . . . . Propulsion . | . . . . Utility . | . . . . Weapon . | . . . . Highest Loss Streak . | . . . . To Critical Strikes . | . . . . Average Slot Usage (%) . | . . . 1 Naked Turns 118 | . 21 10 87 Heaviest Build 3 | . . . 3 Greatest Support 3 | 3 3 3 3 Greatest Overweight (x) . | . . . . Average Overweight (x) . | . . . . Largest Inventory Capacity 5 | 5 5 5 5 Average Capacity 5 | 5 5 5 5 Most Carried 1 | . 1 1 1 Average Carried . | . . 1 . Final Capacity 5 | 5 5 5 5 Final Carried 1 | . 1 1 . Class Distribution -------------------- 100% | Mutant Dominant Class ---------------- Mutant | -10/Materials Mutant | -10/Mines Mutant | -9/Materials Resources | -11 -10 -10 -9 ----------- Run | Jun Mat Min Mat Matter Collected 200 | 200 . . . Remotely . | . . . . Salvage Created . | . . . . Parts . | . . . . Haulers Intercepted . | . . . . Recyclers Shooed . | . . . . Parts Field Recycled . | . . . . Retrieved Matter . | . . . . Parts Self-Destructed . | . . . . Prevented . | . . . . Kills | -11 -10 -10 -9 ------- Run | Jun Mat Min Mat Combat Hostiles Destroyed . | . . . . Classes Destroyed . | . . . . Best Kill Streak . | . . . . Combat Bots Only . | . . . . Max Kills in Single Turn . | . . . . Gunslinging . | . . . . Exploded . | . . . . Melee . | . . . . Uniques/NPCs Destroyed . | . . . . Combat | -11 -10 -10 -9 -------- Run | Jun Mat Min Mat Damage Taken 466 | . . 10 456 Core 466 | . . 10 456 Absorbed by Shields . | . . . . Core Remaining (%) 98 | 100 . 96 . Volleys Fired 2 | . . . 2 Largest 1 | . . . 1 Hottest 30 | . . . 30 Shots Fired 2 | . . . 2 Gun . | . . . . Cannon . | . . . . Launcher 2 | . . . 2 Special . | . . . . Kinetic . | . . . . Thermal . | . . . . Explosive 2 | . . . 2 Electromagnetic . | . . . . Robot Hit Streak . | . . . . Robot Miss Streak . | . . . . Penetration Max . | . . . . Secondary Targets . | . . . . Shots Hit Robots . | . . . . Core Hits 1 | . . . 1 Critical Kills . | . . . . Critical Parts Destroyed . | . . . . Critical Strikes . | . . . . Melee Attacks . | . . . . Impact . | . . . . Slashing . | . . . . Piercing . | . . . . Sneak Attacks . | . . . . Combat Hostiles . | . . . . Follow-up Attacks . | . . . . Damage Inflicted 27 | . . . 27 Guns . | . . . . Cannons . | . . . . Explosions . | . . . . Melee . | . . . . Ramming 27 | . . . 27 Kinetic . | . . . . Thermal . | . . . . Explosive . | . . . . Electromagnetic . | . . . . Impact . | . . . . Slashing . | . . . . Piercing . | . . . . Highest Corruption 2 | . . . 2 Average Corruption 1 | . . . 1 Corruption Purged . | . . . . Corruption Blocked . | . . . . Effects 1 | . . . 1 Energy Discharges 1 | . . . 1 Overload Shots . | . . . . Overflow Damage . | . . . . Projectiles . | . . . . Explosions . | . . . . Melee . | . . . . Knockbacks . | . . . . Impact . | . . . . Kinetic . | . . . . Secondary . | . . . . Self-Inflicted Damage 71 | . . . 71 Shots 1 | . . . 1 Rammed 8 | . . . 8 Targets Rammed 8 | . . . 8 Kicked . | . . . . Crushed . | . . . . Highest Temperature . | . . . . Average Temperature . | . . . . Received Heat Transfer 174 | . . . 174 Siege Activations . | . . . . Robots Corrupted . | . . . . Combat Hostiles . | . . . . Parts Fried . | . . . . Impact Corruptions . | . . . . Robots Melted . | . . . . Combat Hostiles . | . . . . Parts Melted . | . . . . Heat Transferred . | . . . . Parts Sabotaged . | . . . . Parts Stolen . | . . . . Parts Stripped . | . . . . Power Chain Reactions . | . . . . Missiles Intercepted . | . . . . Alert | -11 -10 -10 -9 ------- Run | Jun Mat Min Mat Peak Influence 219 | . . . 219 Initial . | . . . . Average 38 | . . . 56 Maximum Alert Level 1 | . . . 1 Low Security (%) 99 | 100 100 100 98 Level 1 . | . . . 1 Level 2 . | . . . . Level 3 . | . . . . Level 4 . | . . . . Level 5 . | . . . . High Security . | . . . . Max Security . | . . . . Squads Dispatched 1 | . . . 1 Investigation . | . . . . Extermination . | . . . . Reinforcement 1 | . . . 1 Assault . | . . . . Garrison . | . . . . Intercept . | . . . . Searches Triggered . | . . . . Construction Impeded . | . . . . Haulers Reinforced . | . . . . Active Scanning Responses . | . . . . Cargo Convoy Interrupts . | . . . . Stealth | -11 -10 -10 -9 --------- Run | Jun Mat Min Mat Distress Signals . | . . . . Communications Jammed . | . . . . Distress Signals . | . . . . Times Spotted 21 | . 1 1 19 Peak Tracking Total 15 | . 1 3 15 Tactical Retreats 3 | . . . 3 Traps | -11 -10 -10 -9 ------- Run | Jun Mat Min Mat Traps Triggered . | . . . . Indirectly . | . . . . Trap Hack Attempts . | . . . . Triggered . | . . . . Disarmed . | . . . . Reprogrammed . | . . . . Reused . | . . . . Traps Extracted . | . . . . Installed . | . . . . Triggered . | . . . . Machines | -11 -10 -10 -9 ---------- Run | Jun Mat Min Mat Machines Disabled 1 | . . . 1 Max in Single Turn 1 | . . . 1 Machines Repaired . | . . . . Machines Sabotaged . | . . . . Overloaded Fab Kills . | . . . . Hacking | -11 -10 -10 -9 --------- Run | Jun Mat Min Mat Machines Accessed . | . . . . Terminals . | . . . . Fabricators . | . . . . Repair Stations . | . . . . Recycling Units . | . . . . Scanalyzers . | . . . . Garrison Access . | . . . . Total Hacks . | . . . . Successful . | . . . . Failed . | . . . . Catastrophic . | . . . . Database Lockouts . | . . . . Manual . | . . . . Terminals . | . . . . Fabricators . | . . . . Repair Stations . | . . . . Recycling Units . | . . . . Scanalyzers . | . . . . Garrison Access . | . . . . Terminal Hacks . | . . . . Fabricator Hacks . | . . . . Repair Station Hacks . | . . . . Recycling Unit Hacks . | . . . . Scanalyzer . | . . . . Garrison Access Hacks . | . . . . Unauthorized Hacks . | . . . . Terminals . | . . . . Fabricators . | . . . . Repair Stations . | . . . . Recycling Units . | . . . . Scanalyzers . | . . . . Garrison Access . | . . . . Data Cores Recovered . | . . . . Used . | . . . . Hacking Detections . | . . . . Full Trace Events . | . . . . Feedback Events . | . . . . Feedback Blocked . | . . . . Robot Schematics Acquired . | . . . . Robots Built . | . . . . Authchips . | . . . . Time . | . . . . Total Robot Build Rating . | . . . . Part Schematics Acquired . | . . . . Parts Built . | . . . . Authchips . | . . . . Time . | . . . . Total Part Build Rating . | . . . . Parts Repaired . | . . . . Time . | . . . . Parts Recycled . | . . . . Recycled Matter . | . . . . Retrieved Matter . | . . . . Retrieved Components . | . . . . Parts Scanalyzed . | . . . . Part Schematics Acquired . | . . . . Parts Damaged . | . . . . Bothacking | -11 -10 -10 -9 ------------ Run | Jun Mat Min Mat Used RIF Installer . | . . . . Robots Hacked . | . . . . Non-combat . | . . . . Combat . | . . . . Robot Hacks Applied . | . . . . Relay Couplers Released . | . . . . Fabnet Peak Effective % . | . . . . Robots Rewired . | . . . . Allies Hacked . | . . . . Hacks Repelled . | . . . . Allies | -11 -10 -10 -9 -------- Run | Jun Mat Min Mat Total Allies . | . . . . Largest Group . | . . . . Highest-Rated Group . | . . . . Highest-Rated Ally . | . . . . Total Orders . | . . . . Ally Attacks . | . . . . Total Damage . | . . . . Kills . | . . . . Allies Corrupted . | . . . . Allies Melted . | . . . . Intel | -11 -10 -10 -9 ------- Run | Jun Mat Min Mat Robot Analysis Total . | . . . . Derelict Logs Recovered . | . . . . Drone Launches . | . . . . Drone Recoveries . | . . . . Exploration | -11 -10 -10 -9 ------------- Run | Jun Mat Min Mat Turns Passed 141 | 13 21 10 97 Spaces Moved 250 | 25 40 19 166 Core 250 | 25 40 19 166 Treads . | . . . . Legs . | . . . . Wheels . | . . . . Hover . | . . . . Flight . | . . . . Fastest Speed 50 | 50 50 50 50 Average Speed 50 | 50 50 50 50 Slowest Speed 50 | 50 50 50 50 Overloaded Moves . | . . . . Propulsion Burnouts . | . . . . Robots Hopped . | . . . . Cave-ins Triggered . | . . . . Exploration Rate (%) 14 | 3 16 13 27 Regions Visited 3 Branch Regions 1 Pre-discovered Areas . | . . . . Known Exits Taken . | . . . . Unknown Exits Taken 3 | 1 1 1 . Scrap Searched . | . . . . Spaces Dug 12 | . . . 12 Terrain Destroyed 35 | . . . 35 Melee . | . . . . Projectile . | . . . . AOE 35 | . . . 35 Terrain Rammed . | . . . . Walls Destroyed . | . . . . Machines Disabled . | . . . . Actions | -11 -10 -10 -9 --------- Run | Jun Mat Min Mat Total 259 | 24 40 18 177 Wait . | . . . . Move 247 | 24 39 18 166 Hop . | . . . . Pick Up 1 | . 1 . . Fast Attach . | . . . . Attach 1 | . . . 1 Detach . | . . . . Swap . | . . . . Drop . | . . . . Fire 2 | . . . 2 Melee . | . . . . Ram 8 | . . . 8 Kick . | . . . . Crush . | . . . . Escape Stasis . | . . . . Rewire . | . . . . Trap . | . . . . Miscellaneous . | . . . . Route ------- -11/Junkyard -10/Materials -10/Mines -9/Materials History --------- Turn | Location | Event 4 | -11/Junkyard | Discovered new exit (range 15) 14 | -11/Junkyard | Entered Materials 31 | -10/Materials | Discovered new exit (range 9) 35 | -10/Materials | Entered Mines 42 | -10/Mines | Discovered new exit (range 5) 45 | -10/Mines | Entered Materials 45 | -9/Materials | Evolved 2 slots: Utility x2 85 | -9/Materials | Core integrity fell below 50% 99 | -9/Materials | Core integrity fell below 20% 142 | -9/Materials | Destroyed self via exploding Fusion Modulator Last Messages --------------- 00036_ K-01 Serf collects debris. 00042_ EXIT=FOUND PARAMETERS=UTILITY+2 LOCATION=UNKNOWN GOAL=ESCAPE 00063_ ALERT: Hostiles spotted, dispatching reinforcements to Terminal M002. 00083_ Slammed into B-36 Bruiser. 00096_ C-30 ARC bursts open, deploying its payload. 00096_ G-47 Trooper unfolds itself. 00096_ G-34 Mercenary unfolds itself. 00103_ Slammed into G-34 Mercenary. 00104_ Destabilizing: System corrupted (+1). 00105_ Slammed into G-34 Mercenary. 00115_ Slammed into R-06 Scavenger. 00115_ Destabilizing: System corrupted (+1). 00116_ Slammed into U-05 Engineer. 00120_ System corrupted: Energy discharge (-35). 00132_ K-01 Serf collects debris. 00142_ Fusion Modulator explodes. Map ----- +----------------------------------------------------+ | ????????????????????????????????# #??????######### | | ????????????????????????????????# #??????# ? | | ????????????????????????????????#+######## ?? | | ????????????????????????????????# # ??? | | ????????????????????????????????#""" # #???? | | ????????????????????????????????#""" # #???? | | ????????????????????????????????#""" # ##### | | ????????????????????????????????# %/% ==# | | ????????????????????????????????#""" # ==# | | ????????????????????????????????#""" # !!# | | ????????????????????????????????#""" # !!# | | ????????????????????????????????# [# !!# | | ????????????????????????????????########## !!# | | ?????????????????????????????????????????# ##### | | ??????????????????????????????????######## #???? | | ??????????????????????????????????# #???? | | ??????????????????????????????????+ #???? | | ??????????????????????????????????# #???? | | ??????????????????????????????????# #######+##???? | | ??????????????????????????????????# #????? ???? | | ??????????????????????????????????# #????? ?? | | ???????????????????????#########??# #????? !!! ? | | ???????????????????????# #### ##???? !! ? | | ??????????????????????## + +???? !! ? | | ?????????????????????## k #######????#######? | | ?????????????????????# @ #?????????????????? | | ?????????????????# #?????????????????? | | ???????????? ; ######?????????????????? | | ??????????? #;;;; ##??????????????????????? | | ??????????? ???# ;????????????????????????? | | ?????????????????# ;????????????????????????? | | ???????????????? ; ;????????????????????????? | | ??????????????? # ;????????????????????????? | | ?????????????# ; #????????????????????????? | | ?????????????+ + ?????????????????????????? | | ?????????????? ?#######?????????????????????????? | | ?????????????? ??????????????????????????????????? | | ?????????????????????????????????????????????????? | | ?????????????????????????????????????????????????? | | ?????????????????????????????????????????????????? | | ?????????????????????????????????????????????????? | | ?????????????????????????????????????????????????? | | ?????????????????????????????????????????????????? | | ?????????????????????????????????????????????????? | | ?????????????????????????????????????????????????? | | ?????????????????????????????????????????????????? | | ?????????????????????????????????????????????????? | | ?????????????????????????????????????????????????? | | ?????????????????????????????????????????????????? | | ?????????????????????????????????????????????????? | +----------------------------------------------------+ Best States ------------- Heat Dissipation 28 Energy Generation 5 Energy Capacity 100 Matter Stores 300 Matter Capacity 300 Sight Range 16 Terrain Scan Density 10 Evasion (%) 50 Item Schematics ----------------- None Robot Schematics ------------------ None Fabricated ------------ Nothing Alien Tech Used ----------------- None Achievements -------------- None Challenges ------------ None Game ------ Seed PointyFortressMapper Manual? 0 Play Time 00:02:15 Cumulative 209.4 hours Start 2023.05.14 @ 17:35:59 End 2023.05.14 @ 17:37:21 Sessions 1 Manual Loads 0 Difficulty Rogue Special Mode None Game No. 609 Rogue 609 Adventurer 0 Explorer 0 Win Type - Total 9 Types 7/0/1/1/0/0/0/0/0 Lore% 81 Gallery% 80 Achievement% 71 Wizard Run 0 Options --------- ASCII 0 Keyboard 0 Movement Numpad Keybinds 0 Fullscreen 1 Font 16/SmallcapsGlow Map View 75x55 Tactical HUD 1 Map Filters NONE Filters NONE Steam 1 RUN: 849dc96d-ed8b-4171-8dc2-4052a54ea19a